bitfinex/quotes_ETHUSD_20250623
["timestamp","ask_amount","ask_price","bid_price","bid_amount"]
[1750722307264,2.258,2431.1,2430.2,1.76930391]
[1750722307465,3.54966,2431.1,2430.2,1.76930391]
[1750722307710,3.54966,2431.1,2430.2,0.55]
[1750722308277,3.96147728,2431.1,2430.2,0.55]
[1750722309515,10.0,2431.0,2430.4,0.8389]
[1750722309689,40.0,2431.2,2430.5,0.55]
[1750722309888,2.258,2431.1,2430.5,0.55]
[1750722313009,2.258,2431.2,2430.5,0.55]
[1750722314036,12.9166,2431.3,2430.5,0.55]
[1750722314231,14.63450907,2431.3,2430.5,0.55]
[1750722315635,10.5488,2431.7,2430.5,0.55]
[1750722315842,10.5488,2431.7,2430.5,4.66429606]
[1750722315843,2.258,2431.6,2430.5,4.66429606]
[1750722316003,40.0,2431.5,2430.6,7.466]
[1750722316198,40.0,2431.5,2430.1,2.258]
[1750722316199,0.6608,2430.3,2429.2,0.7929]
[1750722316427,12.258,2430.2,2429.2,0.7929]
[1750722316629,2.258,2430.3,2429.7,4.11564343]
[1750722316831,2.258,2430.3,2429.8,0.7929]
[1750722317026,10.0,2430.5,2429.9,0.49086142]
[1750722317432,10.0,2430.5,2429.8,0.7929]
[1750722318243,10.0,2430.5,2429.9,0.55]
[1750722325445,12.2,2430.5,2429.9,0.55]
[1750722326348,10.6608,2430.3,2429.4,0.8497]
[1750722326550,0.6608,2430.3,2429.4,0.8497]
[1750722326751,30.0,2430.2,2429.4,0.8497]
[1750722326918,10.0,2430.0,2429.4,0.8497]
[1750722327113,0.74882235,2430.2,2429.4,0.8497]
[1750722327114,2.2,2429.9,2429.4,0.8497]
[1750722327712,17.477,2430.2,2429.1,0.9897]
[1750722327713,2.2,2429.8,2429.1,0.9897]
[1750722327913,2.2,2429.8,2429.1,0.14]
[1750722328116,10.0,2429.4,2429.1,0.14]
[1750722328312,0.6608,2429.6,2429.1,0.14]
[1750722328517,10.0,2429.4,2429.1,0.14]
[1750722328755,30.0,2429.3,2429.1,0.14]
[1750722328970,32.2,2429.2,2429.1,0.14]
[1750722329263,12.2,2429.2,2429.1,0.14]
[1750722329958,10.0,2429.2,2429.1,0.14]
[1750722330153,12.2,2429.2,2429.1,0.14]
[1750722330352,42.2,2429.2,2429.1,0.14]
[1750722330555,45.03393258,2429.2,2429.1,0.14]
[1750722332158,30.0,2429.0,2428.1,0.999]
[1750722333269,30.0,2429.0,2428.2,0.55]
[1750722334231,2.201,2428.9,2428.2,0.55]
[1750722334459,10.0,2429.1,2428.4,0.55]
[1750722334658,2.201,2429.0,2428.4,0.55]
[1750722336165,10.0,2428.8,2428.1,0.999]
[1750722336327,30.0,2428.7,2428.2,0.55]
[1750722336546,30.0,2428.8,2428.2,0.55]
[1750722336751,30.0,2428.7,2428.2,0.55]
[1750722336961,30.0,2428.7,2428.1,0.999]
[1750722337408,10.0,2428.6,2428.1,0.999]
[1750722337608,30.0,2428.5,2428.1,0.14]
[1750722337753,12.201,2428.4,2428.1,0.14]
[1750722338072,2.63248777,2428.4,2428.1,0.14]
[1750722338476,10.0,2428.3,2428.1,0.14]
[1750722338677,30.0,2428.2,2428.1,0.14]
[1750722338855,40.0,2428.2,2428.1,0.14]
[1750722339056,10.0,2428.2,2428.1,0.14]
[1750722340183,11.26324878,2428.2,2428.1,0.14]
[1750722340682,12.201,2428.2,2428.1,0.14]
[1750722340886,10.0,2428.2,2428.1,0.14]
[1750722345398,40.0,2428.2,2428.1,0.14]
[1750722345594,40.74882235,2428.2,2428.1,0.14]
[1750722347075,12.202,2428.2,2428.1,0.14]
[1750722347403,43.4222,2428.2,2428.1,0.14]
[1750722349203,44.0825,2428.2,2428.1,0.14]
[1750722349401,30.0,2428.0,2427.3,0.8244]
[1750722349766,30.0,2428.0,2427.1,0.14]
[1750722349767,10.0,2427.9,2427.1,0.14]
[1750722349968,10.0,2427.6,2427.1,0.14]
[1750722350180,2.202,2427.5,2427.1,0.14]
[1750722350380,10.0,2427.6,2427.1,0.14]
[1750722350381,2.202,2427.6,2427.1,0.14]
[1750722352025,2.202,2427.6,2427.2,0.55]
[1750722354300,12.114,2427.9,2427.2,0.55]
[1750722354604,0.6603,2428.2,2427.2,0.55]
[1750722354776,2.114,2428.1,2427.2,0.55]
[1750722355511,10.0,2428.0,2427.2,0.55]
[1750722355710,2.114,2428.1,2427.2,0.55]
[1750722356399,2.114,2428.1,2427.4,0.55]
[1750722357791,10.0,2428.3,2427.4,0.55]
[1750722357992,2.114,2428.2,2427.4,0.55]
[1750722358199,2.114,2428.2,2427.4,1.10421716]
[1750722358400,2.114,2428.2,2427.4,0.55]
[1750722359610,10.0,2428.1,2427.4,0.55]
[1750722360315,10.0,2428.1,2427.1,4.92]
[1750722360617,10.0,2428.1,2427.4,0.55]
[1750722360783,2.114,2428.2,2427.4,0.55]
[1750722361221,10.0,2428.3,2427.4,0.55]
[1750722361629,12.012,2428.4,2427.4,0.55]
[1750722361836,10.0,2428.3,2427.6,0.55]
[1750722362149,0.20407227,2428.7,2427.6,0.55]
[1750722362150,30.0,2428.7,2428.0,0.55]
[1750722362310,32.114,2429.1,2428.2,0.55]
[1750722362516,30.0,2429.0,2428.2,1.15677142]
[1750722362748,10.0,2428.9,2428.2,1.15677142]
[1750722363046,0.40218367,2428.9,2428.2,1.15677142]
[1750722363211,2.114,2429.1,2428.2,0.55]
[1750722363411,30.0,2429.3,2428.2,4.66813745]
[1750722363719,2.114,2429.3,2428.4,0.55]
[1750722363921,2.114,2429.3,2428.4,4.66791275]
[1750722363922,12.114,2429.3,2428.4,4.66791275]
[1750722364126,2.114,2429.3,2428.6,0.55]
[1750722364515,12.114,2429.3,2428.6,7.855]
[1750722364711,0.14,2429.9,2428.6,8.72192]
[1750722364712,12.114,2429.7,2428.6,8.72192]
[1750722364949,30.0,2429.6,2428.6,8.72192]
[1750722365150,30.0,2429.4,2428.6,8.72192]
[1750722365319,30.0,2429.6,2428.6,8.72192]
[1750722365652,2.114,2429.7,2428.6,8.72192]
[1750722365853,2.114,2429.7,2428.5,0.8142]
[1750722365854,0.27743,2429.6,2428.5,0.8142]
[1750722366020,10.0,2429.4,2428.7,7.299]
[1750722366220,10.0,2429.2,2428.7,7.299]
[1750722366419,30.0,2429.3,2428.7,7.299]
[1750722366420,10.0,2429.4,2428.7,7.299]
[1750722366751,0.27743,2429.6,2428.7,7.299]
[1750722367241,10.0,2429.4,2428.7,8.32172]
[1750722367442,0.27743,2429.6,2428.7,7.299]
[1750722367611,30.0,2429.3,2428.7,7.299]
[1750722367810,0.27743,2429.6,2428.7,7.299]
[1750722368028,10.0,2429.4,2428.7,7.299]
[1750722368226,10.0,2429.2,2428.7,7.299]
[1750722368453,10.0,2429.4,2428.7,7.299]
[1750722368656,30.0,2429.5,2428.8,0.55]
[1750722368816,10.0,2429.4,2428.8,0.55]
[1750722369016,30.0,2429.5,2428.8,0.55]
[1750722369218,30.0,2429.5,2428.5,0.8142]
[1750722369417,10.0,2429.2,2428.6,0.55]
[1750722370141,3.239043,2429.4,2428.6,0.55]
[1750722370353,2.39043,2429.6,2428.6,0.55]
[1750722370542,30.0,2429.5,2428.6,0.55]
[1750722372957,30.0,2429.5,2428.6,7.817]
[1750722373459,30.0,2429.5,2428.6,0.55]
[1750722373654,10.0,2429.4,2428.5,0.8142]
[1750722373965,30.0,2428.9,2428.1,0.8207]
[1750722374179,10.0,2429.0,2428.1,0.8207]
[1750722374180,10.0,2428.8,2428.1,0.8207]
[1750722374671,10.0,2428.4,2427.6,0.8207]
[1750722374880,10.0,2428.0,2427.6,0.8207]
[1750722375166,10.0,2428.0,2427.2,0.8207]
[1750722375344,30.0,2427.7,2427.2,0.8207]
[1750722375541,10.0,2427.7,2427.2,0.8207]
[1750722375759,30.0,2427.6,2427.2,0.8207]
[1750722376551,2.113,2427.8,2427.2,0.8207]
[1750722377127,10.0,2427.6,2427.2,0.8207]
[1750722377334,2.113,2427.8,2427.2,0.8207]
[1750722377562,10.0,2427.6,2427.2,0.8207]
[1750722377761,2.113,2427.8,2427.2,0.8207]
[1750722377953,30.0,2427.5,2427.2,0.8207]
[1750722378153,30.0,2427.6,2427.2,0.8207]
[1750722378346,30.0,2427.5,2427.2,0.8207]
[1750722379265,10.0,2427.6,2427.2,0.8207]
[1750722379467,10.0,2427.4,2427.2,0.8207]
[1750722379773,10.0,2427.6,2427.2,0.8207]
[1750722380268,2.114,2428.2,2427.3,0.55]
[1750722380467,2.114,2428.2,2427.2,0.8207]
[1750722380468,10.0,2427.8,2427.2,0.8207]
[1750722380636,10.0,2428.1,2427.2,0.8207]
[1750722380836,30.0,2427.8,2427.2,0.8207]
[1750722382374,10.0,2427.7,2427.2,0.8207]
[1750722382676,30.6617,2427.8,2427.1,0.14]
[1750722382677,30.0,2427.4,2427.1,0.14]
[1750722386576,32.051,2427.4,2427.1,0.14]
[1750722386775,2.051,2427.4,2427.1,0.14]
[1750722387489,30.0,2427.3,2427.1,0.14]
[1750722387689,40.0,2427.2,2427.1,0.14]
[1750722387842,44.56340235,2427.2,2427.1,0.14]
[1750722388043,15.22510235,2427.2,2427.1,0.14]
[1750722388256,15.22510235,2427.2,2426.2,0.8686]
[1750722388257,30.0,2426.9,2426.2,0.8686]
[1750722388643,30.0,2426.9,2426.1,0.14]
[1750722388644,10.0,2426.6,2426.1,0.14]
[1750722388862,30.0,2426.4,2426.1,0.14]
[1750722389093,31.2113,2426.4,2426.1,0.14]
[1750722389382,30.0,2426.3,2426.1,0.14]
[1750722389768,40.0,2426.2,2426.1,0.14]
[1750722390374,2.051,2426.3,2426.1,0.14]
[1750722390678,10.0,2426.2,2426.1,0.14]
[1750722393273,0.5052122,2427.3,2426.1,0.14]
[1750722393274,0.14,2428.9,2426.6,4.12099233]
[1750722393480,0.14,2428.9,2427.8,0.55]
[1750722393676,0.14,2428.9,2428.1,0.55]
[1750722394001,0.14,2428.9,2428.0,10.7979]
[1750722394002,30.0,2428.8,2428.3,10.0]
[1750722394299,30.0,2428.8,2428.0,0.7979]
[1750722394671,0.14,2428.9,2428.3,0.55]
[1750722394899,0.14,2428.9,2428.5,10.55]
[1750722395069,0.14,2428.9,2428.6,0.55]
[1750722395398,0.14,2428.9,2428.8,0.55]
[1750722395694,0.14,2428.9,2428.8,1.4048]
[1750722395886,0.14,2428.9,2428.8,5.52205955]
[1750722396475,0.14,2428.9,2428.8,1.4048]
[1750722397097,0.14,2428.9,2428.8,0.8548]
[1750722397420,30.0,2428.8,2428.4,7.647]
[1750722397626,3.2382,2428.8,2428.4,7.647]
[1750722397919,30.0,2428.8,2428.4,7.647]
[1750722398125,0.6642,2429.2,2428.4,7.647]
[1750722398126,0.62456926,2429.8,2429.7,4.11573445]
[1750722398310,0.14,2429.9,2429.7,4.11573445]
[1750722398311,0.14,2429.9,2429.8,4.66556506]
[1750722398495,2.573,2431.6,2430.5,0.55]
[1750722398496,3.2372,2431.6,2430.5,0.55]
[1750722398698,3.2372,2431.6,2430.4,0.8438]
[1750722398699,3.2372,2431.6,2430.7,0.55]
[1750722398904,10.0,2431.5,2430.7,4.66402721]
[1750722399109,2.713,2430.9,2430.7,8.171]
[1750722400029,2.713,2430.9,2430.7,8.58963321]
[1750722400439,2.713,2430.9,2430.7,8.156]
[1750722400642,2.9843,2430.9,2430.7,8.156]
[1750722401760,10.0,2430.7,2430.0,0.822]
[1750722402060,30.0,2430.8,2430.0,0.822]
[1750722402061,10.0,2430.8,2430.0,8.962]
[1750722402601,10.0,2430.6,2430.0,8.962]
[1750722402820,10.0,2430.6,2428.1,0.14]
[1750722402821,30.8042,2430.3,2429.5,8.127]
[1750722403155,10.0,2430.3,2429.4,8.9713]
[1750722404006,10.0,2430.3,2429.4,9.38309064]
[1750722404215,10.0,2430.3,2429.5,0.55]
[1750722404420,30.0,2429.9,2428.6,0.8444]
[1750722404738,10.0,2429.7,2428.6,5.38279288]
[1750722404937,10.0,2429.7,2428.6,0.8444]
[1750722404938,10.0,2429.5,2428.6,0.8444]
[1750722405139,2.571,2429.4,2428.6,0.8444]
[1750722405316,10.0,2429.7,2428.7,4.61353995]
[1750722405517,10.0,2429.5,2428.7,4.61353995]
[1750722405763,2.571,2429.4,2428.7,4.61353995]
[1750722405968,2.571,2429.4,2428.7,0.49621306]
[1750722406149,2.571,2429.3,2428.8,0.55]
[1750722406464,9.894,2429.8,2428.9,4.95573113]
[1750722406465,2.571,2429.2,2428.9,4.95573113]
[1750722406788,2.571,2429.2,2429.0,12.77289654]
[1750722408783,2.571,2429.2,2429.0,8.656]
[1750722409154,2.571,2429.2,2429.0,0.55]
[1750722409482,2.571,2429.2,2429.1,8.629]
[1750722409784,2.571,2429.2,2429.1,8.069]
[1750722410753,2.571,2429.2,2428.9,0.8388]
[1750722411294,2.571,2429.2,2428.6,8.9195]
[1750722411295,2.8281,2429.2,2428.6,8.9195]
[1750722413402,2.8281,2429.2,2428.6,0.8685]
[1750722413592,2.8281,2429.2,2428.6,8.8965]
[1750722414493,10.0,2429.1,2428.2,0.8737]
[1750722414803,2.8281,2429.2,2428.1,0.14]
[1750722414804,10.0,2428.6,2428.1,0.14]
[1750722415021,2.571,2428.5,2428.1,0.14]
[1750722415231,2.571,2429.0,2428.2,0.8737]
[1750722415529,2.571,2429.0,2428.6,4.11749474]
[1750722415685,2.571,2429.3,2428.7,12.70134106]
[1750722415873,2.571,2429.3,2428.9,0.55]
[1750722417103,2.571,2429.2,2428.9,0.55]
[1750722417594,2.571,2429.2,2428.7,8.034]
[1750722418413,2.571,2429.2,2428.7,12.15140798]
[1750722418815,2.571,2429.2,2428.7,8.034]
[1750722420790,2.571,2429.2,2428.8,7.989]
[1750722421386,30.0,2429.0,2428.1,0.14]
[1750722421591,30.0,2428.8,2428.1,0.14]
[1750722421798,2.571,2428.7,2428.1,0.14]
[1750722421997,10.0,2428.6,2428.2,0.8128]
[1750722422428,0.8042,2429.1,2428.2,8.7858]
[1750722422429,2.571,2428.5,2428.2,8.7858]
[1750722422623,2.571,2428.6,2428.3,0.55]
[1750722422923,0.8042,2429.1,2428.3,0.55]
[1750722423124,0.20286782,2430.0,2428.2,8.7858]
[1750722423125,10.7883,2429.5,2428.7,0.55]
[1750722423340,2.571,2429.4,2428.8,7.965]
[1750722423539,9.894,2429.6,2428.9,0.55]
[1750722423738,2.571,2429.3,2428.9,4.66695202]
[1750722424040,2.571,2429.3,2429.0,4.11692]
[1750722424443,9.894,2429.6,2429.1,0.55]
[1750722424644,2.571,2429.5,2429.4,0.55]
[1750722424821,2.571,2429.5,2429.4,8.504]
[1750722425745,2.571,2429.5,2429.4,12.62024269]
[1750722426041,2.571,2429.5,2429.4,10.99086433]
[1750722426405,9.894,2429.6,2429.4,10.99086433]
[1750722426738,9.894,2429.6,2429.4,0.8132]
[1750722426941,9.894,2429.6,2429.5,7.935]
[1750722428032,9.894,2429.6,2429.5,8.485]
[1750722428525,30.0,2430.3,2429.6,0.55]
[1750722428720,2.484,2430.2,2429.6,0.55]
[1750722429425,10.0,2430.4,2429.6,0.55]
[1750722429632,10.0,2430.4,2429.6,6.00733752]
[1750722429633,2.484,2430.4,2429.6,6.00733752]
[1750722429838,2.484,2430.4,2429.8,0.55]
[1750722430151,2.484,2430.4,2429.8,4.66555358]
[1750722430315,2.484,2430.4,2429.9,4.11535658]
[1750722430655,2.484,2430.4,2430.0,7.902]
[1750722431818,2.484,2430.4,2430.1,0.55]
[1750722432152,2.484,2430.4,2430.2,7.884]
[1750722433619,10.4113,2430.9,2430.3,0.929]
[1750722433945,2.484,2430.5,2430.3,0.929]
[1750722434158,2.484,2430.5,2430.4,0.55]
[1750722435019,2.484,2430.5,2430.4,7.86]
[1750722435964,2.484,2430.5,2429.9,1.43269263]
[1750722436124,2.484,2430.5,2430.0,7.854]
[1750722436436,3.4883,2430.5,2430.0,7.854]
[1750722436634,10.34883,2430.4,2429.6,0.975]
[1750722436857,10.34883,2430.4,2429.7,7.847]
[1750722437059,10.34883,2430.4,2429.8,7.847]
[1750722437265,10.34883,2430.4,2429.9,7.847]
[1750722437477,10.34883,2430.4,2429.8,7.841]
[1750722437667,1.383713,2430.3,2429.8,7.841]
[1750722437964,1.383713,2430.3,2429.2,4.11645515]
[1750722438167,1.383713,2430.3,2429.3,7.841]
[1750722438667,1.383713,2430.3,2429.2,4.11645515]
[1750722438866,1.383713,2430.3,2429.3,11.95140258]
[1750722439068,1.1732543,2430.2,2429.3,13.6557075]
[1750722439265,10.0,2430.2,2429.4,8.375]
[1750722439470,30.0,2430.3,2429.4,0.55]
[1750722439679,30.0,2430.3,2429.5,7.823]
[1750722442801,1.0043,2430.5,2429.7,0.9508]
[1750722442977,12.394,2430.4,2429.7,0.9508]
[1750722445068,10.0,2430.4,2429.7,0.9508]
[1750722445374,2.394,2430.3,2429.7,0.9508]
[1750722446580,2.394,2430.3,2429.8,7.77]
[1750722446785,2.394,2430.3,2429.9,7.756]
[1750722446976,2.394,2430.2,2429.9,7.756]
[1750722448374,2.394,2430.2,2429.8,7.753]
[1750722450016,0.9874,2430.8,2429.8,7.753]
[1750722450323,12.393,2430.7,2429.8,7.753]
[1750722450524,1.33804,2430.6,2429.8,7.753]
[1750722450696,30.0,2430.6,2429.8,7.753]
[1750722450898,12.393,2430.7,2429.8,7.753]
[1750722451414,12.393,2430.7,2429.9,7.726]
[1750722451415,30.0,2430.6,2429.9,7.726]
[1750722452191,0.9957,2430.5,2429.7,7.721]
[1750722452391,3.09957,2430.4,2429.7,7.721]
[1750722452585,0.9957,2430.5,2429.7,7.721]
[1750722452796,2.394,2430.4,2429.8,0.55]
[1750722453518,2.394,2430.3,2429.8,0.55]
[1750722454516,2.394,2430.3,2429.9,0.9364]
[1750722454695,2.394,2430.2,2429.9,0.9364]
[1750722454896,2.394,2430.1,2429.9,2.26870409]
[1750722456385,0.9526,2430.8,2430.0,0.55]
[1750722456581,2.393,2430.4,2430.2,0.55]
[1750722456786,2.393,2430.4,2430.3,8.233]
[1750722457424,2.533,2430.9,2430.6,0.55]
[1750722457791,0.14,2430.9,2430.6,0.55]
[1750722457992,0.14,2430.9,2430.6,5.23159898]
[1750722458298,0.14,2430.9,2430.7,0.55]
[1750722458484,0.14,2430.9,2430.6,0.55]
[1750722458683,0.14,2430.9,2430.8,7.673]
[1750722460025,0.14,2430.9,2430.8,8.223]
[1750722460248,0.14,2430.9,2430.8,9.45671869]
[1750722461114,0.14,2430.9,2430.8,1.78371869]
[1750722461317,0.14,2430.9,2430.8,9.43071869]
[1750722461523,0.14,2430.9,2430.8,1.78371869]
[1750722461709,0.14,2430.9,2430.8,8.194]
[1750722462247,0.14,2430.9,2430.5,1.0103]
[1750722462387,0.14,2430.9,2430.6,7.638]
[1750722463237,2.307,2430.8,2430.6,7.638]
[1750722464935,0.14,2430.9,2430.6,7.638]
[1750722465136,0.14,2430.9,2430.7,1.82626776]
[1750722465319,0.14,2430.9,2430.7,5.94027491]
[1750722465521,0.14,2430.9,2430.8,4.66387197]
[1750722465731,0.14,2430.9,2430.8,5.63547197]
[1750722466807,0.03274071,2430.9,2430.8,15.63547197]
[1750722466994,0.03274071,2430.9,2430.8,19.7141945]
[1750722467437,0.14,2431.9,2431.8,1.5307]
[1750722467639,0.14,2431.9,2431.8,9.1557]
[1750722468140,0.14,2431.9,2431.8,13.26788027]
[1750722469968,0.14,2431.9,2431.8,9.1557]
[1750722470263,0.14,2431.9,2431.8,15.00592095]
[1750722471314,0.14,2431.9,2431.8,7.38092095]
[1750722471539,0.14,2431.9,2431.8,14.97592095]
[1750722471959,0.14,2431.9,2431.8,7.38092095]
[1750722472193,0.14,2431.9,2431.8,7.59]
[1750722472508,0.14,2431.9,2431.8,8.14]
[1750722472650,0.14,2431.9,2431.8,7.59]
[1750722473363,0.14,2431.9,2431.8,8.14]
[1750722473753,0.14,2431.9,2431.8,7.581]
[1750722475853,0.14,2431.9,2431.8,7.57]
[1750722476457,0.14,2431.9,2431.6,4.11250674]
[1750722476789,0.14,2431.9,2431.7,12.68759863]
[1750722476966,0.14,2431.9,2431.7,8.57525067]
[1750722479807,0.14,2431.9,2431.7,12.6875541]
[1750722480178,0.14,2431.9,2431.8,4.66218027]
[1750722480506,0.14,2431.9,2431.8,5.58568027]
[1750722480669,0.14,2431.9,2431.8,7.35800665]
[1750722482144,9.883,2433.5,2431.8,22.19856161]
[1750722482427,10.8007,2433.5,2432.8,0.55]
[1750722482720,0.9577,2432.9,2431.9,0.9235]
[1750722482894,0.9577,2432.9,2432.0,8.08]
[1750722483092,1.28407,2432.9,2432.0,0.55]
[1750722483344,40.0,2432.6,2432.1,7.528]
[1750722483498,0.9177,2432.7,2432.1,7.528]
[1750722483825,4.352107,2432.7,2432.1,7.528]
[1750722484323,4.352107,2432.7,2432.2,0.55]
[1750722484725,4.352107,2432.7,2431.6,4.1123872]
[1750722484726,0.9177,2432.7,2431.6,4.1123991]
[1750722484892,3.2237,2432.7,2431.7,7.525]
[1750722485097,3.2237,2432.7,2432.1,0.9743]
[1750722485322,3.2237,2432.7,2432.3,0.55]
[1750722485523,0.04,2432.9,2432.3,0.55]
[1750722486328,0.04,2432.9,2432.2,11.6344158]
[1750722486329,0.04,2432.9,2432.5,0.55]
[1750722486537,0.04,2432.9,2432.6,7.524]
[1750722486894,0.04,2432.9,2432.7,0.55]
[1750722487160,0.04,2432.9,2432.2,4.11141111]
[1750722487161,0.04,2432.9,2432.8,8.073]
[1750722487528,0.04,2432.9,2432.1,0.9743]
[1750722487827,0.04,2432.9,2432.2,0.55]
[1750722488025,10.0,2432.7,2432.3,7.515]
[1750722488226,0.994,2432.5,2432.2,7.516]
[1750722488967,0.994,2432.5,2432.2,7.517]
[1750722489662,3.216,2432.5,2432.2,7.517]
[1750722490846,3.216,2432.5,2431.6,0.9529]
[1750722491043,3.216,2432.5,2431.3,0.9529]
[1750722491044,0.9546,2432.3,2431.3,0.9529]
[1750722491261,40.0,2432.2,2431.4,7.504]
[1750722491465,30.0,2432.2,2431.5,0.55]
[1750722491975,0.9546,2432.3,2431.5,0.55]
[1750722492380,2.222,2432.2,2431.3,0.9529]
[1750722492577,40.0,2432.0,2430.7,5.11072275]
[1750722492879,30.0,2432.0,2430.8,7.502]
[1750722493389,30.0,2432.0,2430.7,5.11081744]
[1750722493584,30.0,2432.0,2430.9,7.501]
[1750722493737,30.0,2432.0,2431.0,0.55]
[1750722493932,0.9311,2432.1,2431.0,0.55]
[1750722493933,3.09311,2431.9,2431.0,0.55]
[1750722494282,30.0,2432.0,2431.0,0.55]
[1750722494881,30.0,2432.0,2431.2,0.55]
[1750722497104,30.0,2431.8,2431.2,0.55]
[1750722497606,30.0,2431.8,2430.8,0.55]
[1750722497769,30.0,2431.8,2431.0,0.55]
[1750722497965,30.0,2431.7,2431.0,0.55]
[1750722498164,2.223,2431.6,2431.0,0.55]
[1750722498798,0.9749,2431.9,2431.3,0.55]
[1750722499069,0.45254342,2432.9,2431.8,0.55]
[1750722499070,30.0,2432.8,2431.8,0.55]
[1750722499296,30.0,2432.8,2432.0,0.55]
[1750722499585,3.26755434,2432.7,2432.0,0.55]
[1750722499785,2.67554342,2432.9,2432.0,0.55]
[1750722499987,0.28196468,2432.8,2432.0,0.55]
[1750722500571,2.67554342,2432.9,2432.0,0.55]
[1750722501517,2.263,2432.9,2431.8,4.66211271]
[1750722501722,2.263,2432.9,2432.2,0.55]
[1750722501918,2.58875,2432.9,2432.2,0.55]
[1750722502248,2.58875,2432.9,2432.0,0.55]
[1750722502249,2.263,2432.9,2432.0,0.55]
[1750722502503,2.263,2432.9,2432.4,0.55]
[1750722502900,0.04,2432.9,2432.4,0.55]
[1750722503104,2.222,2432.8,2432.4,0.55]
[1750722503506,2.222,2432.8,2431.8,0.55]
[1750722503807,2.222,2432.8,2431.8,4.66216699]
[1750722504112,2.222,2432.8,2431.9,7.467]
[1750722504323,2.222,2432.8,2432.1,0.55]
[1750722504524,0.04,2432.9,2432.1,0.55]
[1750722504525,2.222,2432.7,2432.1,0.55]
[1750722507295,2.222,2432.7,2432.2,7.446]
[1750722507502,2.222,2432.7,2432.3,0.55]
[1750722507697,2.222,2432.7,2432.4,7.439]
[1750722507901,2.222,2432.7,2432.1,7.439]
[1750722507902,0.9572,2432.6,2432.1,7.439]
[1750722508411,0.9572,2432.6,2431.8,0.55]
[1750722508616,0.9572,2432.6,2432.2,7.438]
[1750722510150,0.04,2432.9,2432.4,0.55]
[1750722510356,0.04,2432.9,2432.4,1.85729538]
[1750722512040,0.04,2432.9,2432.1,4.11165694]
[1750722512041,0.04,2432.9,2432.5,7.432]
[1750722512830,0.04,2432.9,2432.6,0.55]
[1750722513422,0.04,2432.9,2432.6,1.473]
[1750722515316,0.04,2432.9,2432.4,0.55]
[1750722515544,0.04,2432.9,2432.6,0.55]
[1750722516136,0.9553,2432.8,2432.6,0.55]
[1750722516336,3.1773,2432.8,2432.6,0.55]
[1750722516738,3.1773,2432.8,2432.5,7.405]
[1750722517034,30.0,2432.7,2431.5,4.89040626]
[1750722517226,30.0,2432.7,2431.6,7.396]
[1750722517427,30.0,2432.7,2431.5,4.89040626]
[1750722517428,0.7425,2432.6,2431.7,7.396]
[1750722517784,30.0,2432.7,2431.2,4.78]
[1750722517785,0.7425,2432.4,2431.8,7.395]
[1750722518117,0.7425,2432.4,2431.1,13.99424982]
[1750722518118,30.0,2432.3,2430.9,0.7834]
[1750722518322,9.88,2432.4,2430.9,0.7834]
[1750722518323,6.8775,2432.2,2431.2,4.11308695]
[1750722518649,2.8895,2432.2,2431.3,7.396]
[1750722518953,2.8895,2432.2,2431.4,0.55]
[1750722519121,2.8895,2432.2,2431.2,4.11308695]
[1750722519317,2.8895,2432.2,2431.5,7.394]
[1750722520350,2.8895,2432.2,2431.5,8.1334]
[1750722521159,2.147,2432.1,2431.5,8.1334]
[1750722521526,9.88,2432.4,2431.6,1.3272]
[1750722521723,9.88,2432.4,2431.7,7.375]
[1750722521724,10.0,2432.2,2431.7,7.375]
[1750722522027,30.0,2432.2,2431.7,7.382]
[1750722522370,14.19489481,2432.2,2431.6,7.383]
[1750722522578,0.7425,2432.6,2431.4,0.7772]
[1750722522860,0.7425,2432.4,2430.9,0.7772]
[1750722523046,2.147,2432.8,2431.0,12.07745438]
[1750722523047,0.7425,2432.2,2431.0,12.07745438]
[1750722523249,2.147,2432.1,2431.0,12.07745438]
[1750722523445,2.147,2432.1,2431.1,1.69683558]
[1750722523853,12.147,2432.1,2431.1,1.69683558]
[1750722524022,0.7425,2432.0,2431.1,1.69683558]
[1750722524223,0.7425,2432.0,2430.5,1.20023946]
[1750722524224,0.7425,2431.9,2430.5,1.20023946]
[1750722524423,30.0,2431.6,2430.2,4.9025716]